bitfinex-derivatives/quotes_SOLF0:USTF0_20250501
["timestamp","ask_amount","ask_price","bid_price","bid_amount"]
[1746128134975,29.9074,150.84,150.81,6.6284]
[1746128135377,23.28,150.84,150.81,6.6284]
[1746128136177,6.6277,150.83,150.81,6.6284]
[1746128136774,31.12943012,150.84,150.78,7.84943012]
[1746128136975,23.28,150.84,150.8,7.84943012]
[1746128137876,4.119,150.86,150.8,7.84943012]
[1746128138083,6.6273,150.84,150.82,6.6278]
[1746128138880,6.6269,150.85,150.82,6.6278]
[1746128139284,6.6269,150.85,150.83,6.6275]
[1746128139482,23.26,150.86,150.84,7.84943012]
[1746128139782,23.26,150.88,150.84,7.84943012]
[1746128140086,33.17593012,150.89,150.84,7.84943012]
[1746128140474,6.6256,150.88,150.85,6.6267]
[1746128140981,6.6256,150.88,150.86,6.6262]
[1746128141179,4.0448,150.91,150.86,7.84943012]
[1746128141677,6.6252,150.89,150.84,7.84943012]
[1746128142392,6.6252,150.89,150.86,6.6259]
[1746128142590,6.6255,150.88,150.84,7.84943012]
[1746128143783,6.6252,150.89,150.84,7.84943012]
[1746128143985,11.89423012,150.91,150.85,6.6265]
[1746128144687,6.6253,150.89,150.85,6.6265]
[1746128145073,6.6255,150.88,150.85,6.6265]
[1746128146785,6.6251,150.89,150.86,6.6262]
[1746128147582,6.6248,150.9,150.86,7.84943012]
[1746128148788,6.6248,150.9,150.87,6.6256]
[1746128149787,10.669,150.91,150.88,6.6254]
[1746128150178,4.0448,150.91,150.88,6.6254]
[1746128151089,6.6246,150.9,150.87,6.6257]
[1746128151390,11.89423012,150.91,150.87,6.6257]
[1746128151592,11.89423012,150.91,150.86,6.6261]
[1746128152182,6.6252,150.89,150.86,6.6261]
[1746128153489,6.6252,150.89,150.87,6.6258]
[1746128154289,6.6248,150.9,150.87,6.6258]
[1746128154988,6.625,150.89,150.86,14.47553012]
[1746128160991,7.84943012,150.89,150.8,23.24]
[1746128161194,23.24,150.88,150.82,7.84943012]
[1746128161496,6.626,150.87,150.84,6.6269]
[1746128161695,23.24,150.88,150.84,7.84943012]
[1746128162100,29.8657,150.88,150.85,6.6265]
[1746128162397,23.24,150.88,150.85,6.6265]
[1746128162597,23.24,150.88,150.84,7.84943012]
[1746128162796,6.6259,150.87,150.84,7.84943012]
[1746128162997,1.9781,150.9,150.84,7.84943012]
[1746128163297,6.6259,150.87,150.84,14.47643012]
[1746128165197,6.6256,150.88,150.85,6.6267]
[1746128165708,6.6252,150.89,150.86,6.6262]
[1746128168203,6.6254,150.88,150.85,6.6265]
[1746128169403,6.6254,150.88,150.86,6.6262]
[1746128170705,6.6254,150.88,150.86,14.47563012]
[1746128171402,6.6252,150.89,150.86,14.47563012]
[1746128172203,35.15423012,150.91,150.86,14.47563012]
[1746128172710,6.6248,150.9,150.87,6.6257]
[1746128173008,27.3048,150.91,150.86,7.84943012]
[1746128173304,33.929,150.91,150.88,6.6252]
[1746128173503,29.8842,150.91,150.88,7.84943012]
[1746128173708,23.26,150.91,150.88,7.84943012]
[1746128174212,6.6239,150.92,150.89,6.6247]
[1746128175412,6.6239,150.92,150.88,7.84943012]
[1746128175413,379.24,150.94,150.9,7.84943012]
[1746128175597,4.0421,150.96,150.92,7.84943012]
[1746128175800,25.3443,150.97,150.92,7.84943012]
[1746128176109,6.6221,150.96,150.93,6.6232]
[1746128180206,6.6224,150.95,150.92,6.6235]
[1746128181401,3.9916,150.96,150.9,6.6241]
[1746128181603,3.9916,150.96,150.87,23.24]
[1746128182507,3.9916,150.96,150.89,6.6248]
[1746128183907,3.9916,150.96,150.87,6.6258]
[1746128184102,12.24354884,150.95,150.84,39.54744884]
[1746128184508,6.624,150.92,150.88,6.6254]
[1746128184806,23.24,150.92,150.88,6.6254]
[1746128185103,6.6241,150.91,150.88,6.6254]
[1746128194421,29.8639,150.92,150.84,39.54744884]
[1746128194621,23.24,150.92,150.84,39.54744884]
[1746128194921,6.6247,150.9,150.84,39.54744884]
[1746128195822,6.6243,150.91,150.88,6.6251]
[1746128197018,23.24,150.92,150.87,6.6257]
[1746128197519,6.6249,150.9,150.87,6.6257]
[1746128198416,35.48354884,150.92,150.8,1.9638]
[1746128198721,16.23174884,150.89,150.81,23.24]
[1746128198916,23.24,150.88,150.78,35.48354884]
[1746128199620,6.627,150.85,150.82,6.6278]
[1746128206018,6.6261,150.87,150.78,35.48354884]
[1746128206422,6.6261,150.87,150.84,6.6269]
[1746128206823,6.6261,150.87,150.78,35.48354884]
[1746128207019,6.6261,150.87,150.84,6.6269]
[1746128209826,29.8656,150.88,150.85,6.6267]
[1746128210221,23.24,150.88,150.82,23.24]
[1746128210422,23.24,150.88,150.85,6.6265]
[1746128211225,6.6259,150.87,150.85,6.6265]
[1746128211620,6.6259,150.87,150.84,6.627]
[1746128213423,23.24,150.88,150.82,23.24]
[1746128214028,29.8658,150.88,150.85,6.6267]
[1746128214526,23.24,150.88,150.85,6.6267]
[1746128215328,6.6259,150.87,150.85,6.6267]
[1746128215830,6.6265,150.86,150.82,23.24]
[1746128216031,23.24,150.88,150.79,35.48354884]
[1746128216416,29.8655,150.88,150.85,6.6265]
[1746128217029,29.8655,150.88,150.86,6.6263]
[1746128218230,6.6251,150.89,150.87,6.6259]
[1746128219033,6.6256,150.88,150.79,23.24]
[1746128219229,6.6256,150.88,150.81,12.24354884]
[1746128219731,6.6251,150.89,150.81,12.24354884]
[1746128220632,6.6251,150.89,150.86,6.626]
[1746128221534,23.24,150.9,150.79,23.24]
[1746128221735,35.48354884,150.9,150.79,23.24]
[1746128221933,16.40104884,150.89,150.79,23.24]
[1746128222232,6.627,150.85,150.82,6.6277]
[1746128222828,6.6265,150.86,150.83,6.6276]
[1746128223335,16.40104884,150.89,150.83,6.6276]
[1746128225835,6.6263,150.87,150.83,6.6276]
[1746128227231,6.6263,150.86,150.83,6.6276]
[1746128228738,6.6263,150.86,150.83,6.42277173]
[1746128231144,4.1575,150.89,150.8,12.24354884]
[1746128231438,23.24,150.9,150.8,12.24354884]
[1746128231637,23.24,150.9,150.81,2.0972]
[1746128231939,29.8648,150.9,150.87,6.6255]
[1746128232129,23.48,150.93,150.83,35.72354884]
[1746128232334,528.9107,150.94,150.86,12.24354884]
[1746128232533,27.4907,150.94,150.86,12.24354884]
[1746128232730,6.6236,150.93,150.9,6.6243]
[1746128233655,27.4907,150.94,150.87,23.48]
[1746128234047,6.6243,150.91,150.87,23.48]
[1746128234250,6.6243,150.91,150.88,6.6253]
[1746128240663,27.4907,150.94,150.83,35.72354884]
[1746128240847,12.24354884,150.92,150.83,23.48]
[1746128241152,1.9962,150.91,150.83,23.48]
[1746128241352,6.6255,150.88,150.84,6.6269]
[1746128241963,6.6259,150.87,150.84,6.6269]
[1746128242259,23.48,150.9,150.83,30.1074]
[1746128242455,23.48,150.9,150.83,6.6274]
[1746128243660,6.6262,150.87,150.83,6.6274]
[1746128244460,6.6262,150.87,150.84,6.6271]
[1746128244660,6.6256,150.88,150.8,35.72354884]
[1746128245059,6.6256,150.88,150.85,6.6267]
[1746128245461,6.626,150.87,150.8,35.72354884]
[1746128245663,6.626,150.87,150.84,6.627]
[1746128246159,6.6256,150.88,150.85,6.6267]
[1746128246961,23.48,150.9,150.8,35.72354884]
[1746128247661,6.6255,150.88,150.8,35.72354884]
[1746128248161,6.6255,150.88,150.86,6.626]
[1746128248360,6.6251,150.89,150.8,35.72354884]
[1746128248861,6.6251,150.89,150.86,6.6259]
[1746128249060,6.6251,150.89,150.8,35.72354884]
[1746128250955,30.1046,150.9,150.8,35.72354884]
[1746128251151,30.1046,150.9,150.83,12.24354884]
[1746128251152,23.48,150.9,150.83,12.24354884]
[1746128251452,23.48,150.9,150.88,6.6251]
[1746128256266,23.48,150.9,150.89,6.625]
[1746128256465,6.6239,150.92,150.89,6.625]
[1746128256965,23.48,150.93,150.89,6.625]
[1746128257166,23.48,150.93,150.88,6.6252]
[1746128257366,6.6247,150.9,150.84,23.48]
[1746128257571,23.48,150.93,150.81,23.48]
[1746128258365,6.6256,150.88,150.85,6.6266]
[1746128259163,6.6256,150.88,150.86,6.6263]
[1746128261772,6.6256,150.88,150.85,6.6265]
[1746128264974,6.6256,150.88,150.86,6.6262]
[1746128268179,23.48,150.89,150.81,23.48]
[1746128268370,23.48,150.89,150.83,12.24354884]
[1746128268765,6.6243,150.91,150.83,12.24354884]
[1746128270179,30.0238,150.92,150.83,12.24354884]
[1746128270371,6.6238,150.92,150.83,16.11564884]
[1746128271179,6.6238,150.92,150.9,6.6243]
[1746128275980,23.4,150.93,150.9,6.6243]
[1746128276173,30.0235,150.93,150.9,6.6243]
[1746128276377,23.4,150.93,150.89,6.6248]
[1746128276982,6.6239,150.92,150.89,6.6248]
[1746128277482,6.6242,150.91,150.89,6.6248]
[1746128278482,23.4,150.93,150.86,23.4]
[1746128278674,23.4,150.93,150.86,35.64354884]
[1746128279083,30.0232,150.93,150.86,35.64354884]
[1746128279682,30.0232,150.93,150.9,6.6245]
[1746128281686,6.6237,150.92,150.9,6.6245]
[1746128283783,23.4,150.93,150.88,6.6251]
[1746128283986,23.4,150.93,150.86,23.4]
[1746128284190,23.4,150.93,150.83,39.51564884]
[1746128284480,23.4,150.93,150.87,6.6257]
[1746128284785,12.24354884,150.92,150.83,23.4]
[1746128284985,12.24354884,150.92,150.85,6.6265]
[1746128285488,6.6256,150.88,150.85,6.6265]
[1746128286294,6.6252,150.89,150.86,6.626]
[1746128286485,23.4,150.93,150.84,12.24354884]
[1746128286988,6.6238,150.92,150.84,12.24354884]
[1746128287490,6.6238,150.92,150.88,6.6251]
[1746128288190,6.6238,150.92,150.89,6.6249]
[1746128288392,6.6241,150.91,150.89,6.6249]
[1746128289592,6.6238,150.92,150.89,6.6249]
[1746128292296,30.0233,150.93,150.9,6.6244]
[1746128294594,23.4,150.93,150.91,6.624]
[1746128294895,23.4,150.93,150.84,12.24354884]
[1746128295095,30.0232,150.93,150.84,12.24354884]
[1746128295597,30.0232,150.93,150.9,6.6243]
[1746128296194,6.6237,150.92,150.9,6.6243]
[1746128298904,30.0234,150.93,150.9,6.6243]
[1746128299604,6.6237,150.92,150.9,6.6243]
[1746128302804,23.4,150.93,150.89,6.6248]
[1746128302805,6.6241,150.91,150.89,6.6248]
[1746128303105,23.4,150.93,150.87,24.06]
[1746128303401,6.6248,150.9,150.84,36.30354884]
[1746128303901,6.6248,150.9,150.87,6.6256]
[1746128304202,6.625,150.89,150.87,6.6256]
[1746128304608,23.4,150.93,150.88,6.6254]
[1746128304809,6.6245,150.91,150.88,6.6254]
[1746128305111,23.4,150.93,150.84,24.06]
[1746128305307,6.6257,150.88,150.84,24.06]
[1746128305712,6.6257,150.88,150.86,6.6262]
[1746128306315,6.6252,150.89,150.86,6.6262]
[1746128306807,6.6252,150.89,150.87,6.6257]
[1746128309006,6.6256,150.88,150.85,6.6265]
[1746128310012,30.6851,150.89,150.86,6.6262]
[1746128310606,30.6851,150.89,150.87,6.6258]
[1746128310803,24.06,150.89,150.81,36.30354884]
[1746128311114,24.06,150.89,150.87,6.6256]
[1746128312414,30.685,150.89,150.87,6.6256]
[1746128312811,24.06,150.89,150.87,6.6256]
[1746128314509,30.685,150.89,150.87,6.6256]
[1746128318513,30.685,150.89,150.86,6.6261]
[1746128320019,30.685,150.89,150.81,36.30354884]
[1746128320209,24.06,150.89,150.81,36.30354884]
[1746128320617,24.06,150.89,150.87,6.6257]
[1746128321417,30.685,150.89,150.86,6.6261]
[1746128323318,24.06,150.89,150.81,36.30354884]
[1746128323619,31.76193136,150.92,150.86,7.84193136]
[1746128324712,6.6247,150.9,150.87,6.6256]
[1746128324918,31.76193136,150.92,150.86,7.84193136]
[1746128325218,6.6244,150.91,150.88,6.6253]
[1746128326713,6.6245,150.9,150.88,6.6253]
[1746128332112,6.6243,150.91,150.88,6.6253]
[1746128332313,23.92,150.92,150.89,6.6249]
[1746128332719,30.5439,150.92,150.89,6.6249]
[1746128333012,23.92,150.92,150.89,6.6249]
[1746128334220,6.6242,150.91,150.89,6.6249]
[1746128334828,6.6242,150.91,150.88,6.6252]
[1746128335120,6.6246,150.9,150.88,6.6252]
[1746128336522,6.6243,150.91,150.88,6.6252]
[1746128337323,6.6243,150.91,150.89,6.6248]
[1746128338816,6.6243,150.91,150.88,6.6252]
[1746128339525,5.9709,150.94,150.85,12.25403936]
[1746128340227,12.5937,150.94,150.85,12.25403936]
[1746128340427,5.9709,150.94,150.85,12.25403936]
[1746128341929,12.5938,150.94,150.85,12.25403936]
[1746128342427,12.5938,150.94,150.91,6.6237]
[1746128342928,12.5938,150.94,150.92,6.6237]
[1746128343924,5.9709,150.94,150.85,12.25403936]
[1746128345028,12.5939,150.94,150.91,6.6239]
[1746128345525,12.5939,150.94,150.92,6.6236]
[1746128347626,10.6337,150.94,150.92,6.6236]
[1746128350527,10.6337,150.94,150.89,7.83832798]
[1746128350722,4.0107,150.94,150.91,6.6239]
[1746128351029,4.0107,150.94,150.89,7.83832798]
[1746128351232,30.5426,150.95,150.93,6.6232]
[1746128351525,30.5426,150.95,150.91,7.83832798]
[1746128351733,6.6226,150.95,150.92,6.6234]
[1746128353033,6.6229,150.94,150.92,6.6234]
[1746128353330,6.6229,150.94,150.91,6.6239]
[1746128354035,6.6229,150.94,150.92,6.6237]
[1746128355539,6.6229,150.94,150.91,6.6239]
[1746128355834,6.6233,150.93,150.91,6.6239]
[1746128356435,6.623,150.94,150.91,6.6239]
[1746128358936,6.6232,150.93,150.91,6.6239]
[1746128359239,7.83832798,150.93,150.84,37.1739]
[1746128359534,6.6245,150.91,150.86,7.83832798]
[1746128360139,6.6245,150.91,150.88,6.6251]
[1746128360331,6.6246,150.9,150.88,6.6251]
[1746128360831,23.72,150.92,150.88,6.6251]
[1746128361038,6.6243,150.91,150.88,6.6251]
[1746128361239,6.6243,150.91,150.89,6.6249]
[1746128361438,23.72,150.92,150.86,7.83832798]
[1746128361734,30.3439,150.92,150.86,7.83832798]
[1746128361940,30.3439,150.92,150.9,6.6244]
[1746128362235,6.6241,150.91,150.86,7.83832798]
[1746128362438,6.6241,150.91,150.89,6.6247]
[1746128364143,6.6248,150.9,150.86,7.83832798]
[1746128364841,6.6252,150.89,150.86,6.6259]
[1746128365041,6.6252,150.89,150.85,7.83832798]
[1746128365343,23.72,150.92,150.87,7.83832798]
[1746128365532,23.72,150.92,150.84,36.17144649]
[1746128365942,6.6247,150.9,150.84,36.17144649]
[1746128366444,6.6247,150.9,150.87,6.6256]
[1746128368242,6.6247,150.9,150.84,36.17144649]
[1746128368243,23.72,150.92,150.86,6.6261]
[1746128369148,6.6251,150.89,150.86,6.6261]
[1746128370747,6.6251,150.89,150.87,6.6258]
[1746128374048,6.6248,150.9,150.88,6.6253]
[1746128374854,6.6251,150.89,150.87,6.6256]
[1746128379957,14.27774649,150.93,150.8,23.72]
[1746128379958,23.72,150.88,150.8,23.72]
[1746128380254,35.97144649,150.87,150.77,23.72]
[1746128380442,6.6283,150.82,150.79,6.6292]
[1746128380648,6.6283,150.82,150.77,23.72]
[1746128380844,6.6278,150.83,150.77,23.72]
[1746128381458,6.6278,150.83,150.8,6.6287]
[1746128383561,6.6278,150.83,150.81,6.6285]
[1746128383863,37.97594649,150.87,150.77,23.72]
[1746128384062,12.25144649,150.84,150.78,6.6296]
[1746128384262,27.5456,150.83,150.78,6.6296]
[1746128384462,6.6288,150.81,150.78,6.6296]
[1746128384666,6.6288,150.81,150.79,6.6294]
[1746128384961,25.5833,150.83,150.74,23.64]
[1746128385159,23.64,150.83,150.74,23.64]
[1746128385359,23.64,150.83,150.8,6.6285]
[1746128385561,30.2678,150.83,150.8,6.6285]
[1746128386066,6.6281,150.82,150.79,6.6292]
[1746128386369,23.64,150.83,150.74,23.64]
[1746128386663,23.64,150.83,150.77,6.6301]
[1746128386863,3.9859,150.82,150.77,6.6301]
[1746128387062,3.9859,150.82,150.74,23.64]
[1746128387267,5.9475,150.82,150.75,6.6311]
[1746128387567,18.19894649,150.82,150.75,6.6311]
[1746128387770,6.63,150.78,150.75,6.6311]
[1746128388571,30.2695,150.79,150.75,6.6311]
[1746128388762,23.64,150.79,150.75,6.6311]
[1746128389371,6.6301,150.78,150.75,6.6311]
[1746128389565,23.64,150.79,150.76,6.6307]
[1746128390066,30.2697,150.79,150.76,6.6307]
[1746128390272,23.64,150.79,150.75,6.631]
[1746128391172,6.6299,150.78,150.75,6.631]
[1746128392575,30.2696,150.79,150.72,23.64]
[1746128392973,23.64,150.79,150.72,23.64]
[1746128393171,6.6298,150.78,150.75,6.6309]
[1746128398880,30.2695,150.79,150.76,6.6304]
[1746128401376,30.2695,150.79,150.77,6.6302]
[1746128402180,30.2695,150.79,150.76,6.6305]
[1746128402571,6.6299,150.78,150.76,6.6305]
[1746128404379,23.64,150.79,150.72,23.64]
[1746128404980,30.2694,150.79,150.72,23.64]
[1746128405182,23.64,150.79,150.72,23.64]
[1746128405577,38.1240561,150.79,150.74,7.8543561]
[1746128406581,38.1240561,150.79,150.77,6.6302]
[1746128406984,6.6298,150.78,150.74,7.8543561]
[1746128407182,6.6298,150.78,150.76,6.6304]
[1746128408977,30.2696,150.79,150.77,6.6302]
[1746128409179,38.1239561,150.79,150.77,6.6302]
[1746128410586,38.1239561,150.79,150.78,6.6298]
[1746128410587,23.64,150.79,150.78,6.6298]
[1746128411383,7.8543561,150.81,150.8,6.6289]
[1746128413481,23.66,150.82,150.8,6.6289]
[1746128413677,23.66,150.82,150.81,6.6285]
[1746128414988,23.5,150.85,150.82,6.6278]
[1746128415186,30.1269,150.85,150.82,6.6278]
[1746128416889,6.6273,150.84,150.82,6.6278]
[1746128417489,6.6273,150.84,150.81,6.6283]
[1746128419689,6.6277,150.83,150.81,6.6283]
[1746128424297,6.6274,150.84,150.81,6.6283]
[1746128427588,6.6277,150.83,150.76,35.92830124]
[1746128427794,6.6277,150.83,150.8,6.6287]
[1746128427995,23.5,150.85,150.76,23.66]
[1746128428294,6.6283,150.82,150.8,6.6288]
[1746128428497,23.5,150.85,150.8,6.6288]
[1746128429083,6.6275,150.84,150.81,6.6284]
[1746128429290,23.5,150.85,150.81,6.6284]
[1746128429791,6.6273,150.84,150.81,6.6284]
[1746128433495,14.47710964,150.84,150.81,6.6284]
[1746128433893,7.84980964,150.84,150.82,6.6279]
[1746128434096,37.97680964,150.85,150.8,7.84980964]
[1746128434394,37.97680964,150.85,150.82,6.6278]
[1746128434594,6.6272,150.84,150.82,6.6278]
[1746128435396,6.6276,150.83,150.78,7.84980964]
[1746128435599,14.47740964,150.83,150.78,7.84980964]
[1746128435793,7.84980964,150.83,150.78,7.84980964]
[1746128437203,6.6281,150.82,150.8,6.6288]
[1746128438796,6.6286,150.81,150.79,6.629]
[1746128439895,6.6282,150.82,150.8,6.6289]
[1746128444605,6.6282,150.82,150.79,6.6291]
[1746128444906,6.6282,150.82,150.77,7.84980964]
[1746128446309,6.6282,150.82,150.8,6.6289]
[1746128451513,30.1277,150.83,150.81,6.6282]
[1746128456119,37.97750964,150.83,150.8,6.6287]
[1746128456320,31.34980964,150.83,150.77,7.84980964]
[1746128456518,7.84980964,150.81,150.78,6.6296]
[1746128456822,14.47920964,150.79,150.73,31.30980964]
[1746128457121,14.47920964,150.79,150.76,6.6303]
[1746128457324,7.84980964,150.81,150.75,7.84980964]
[1746128457525,6.6291,150.8,150.75,7.84980964]
[1746128457721,6.6291,150.8,150.77,6.6299]
[1746128457910,7.84980964,150.81,150.77,6.6299]
[1746128458317,6.629,150.8,150.77,6.6299]
[1746128459427,6.629,150.8,150.75,7.84980964]
[1746128459428,6.629,150.8,150.78,6.6298]
[1746128459614,6.629,150.8,150.75,7.84980964]
[1746128460327,6.629,150.8,150.77,6.63]
[1746128461328,14.47850964,150.81,150.75,7.84980964]
[1746128461730,7.84980964,150.81,150.75,7.84980964]
[1746128461929,6.6289,150.8,150.77,6.6299]
[1746128467827,7.84980964,150.81,150.73,23.46]
[1746128468036,3.885,150.82,150.7,13.2659]
[1746128468037,7.84980964,150.77,150.71,7.84980964]
[1746128468234,23.46,150.78,150.7,31.30980964]
[1746128468430,7.84980964,150.75,150.7,23.46]
[1746128468631,7.84980964,150.75,150.69,7.84980964]
[1746128468932,7.84980964,150.75,150.71,6.6325]
[1746128469132,7.84980964,150.75,150.69,7.84980964]
[1746128469433,14.48130964,150.75,150.72,6.6324]
[1746128469635,6.6315,150.75,150.72,6.6324]
[1746128471027,6.6316,150.74,150.67,27.4553]
[1746128471533,6.6316,150.74,150.71,6.6326]
[1746128471840,23.46,150.74,150.67,23.46]
[1746128472032,23.46,150.74,150.63,6.0709]
[1746128472033,23.46,150.74,150.65,12.27912073]
[1746128472253,6.6326,150.72,150.65,12.27912073]
[1746128472573,6.6326,150.72,150.7,6.6331]
[1746128472854,6.6322,150.73,150.7,6.6331]
[1746128482445,6.6324,150.72,150.7,6.6331]
[1746128486947,6.6322,150.73,150.71,6.6328]
[1746128487145,23.46,150.74,150.71,6.6328]
[1746128488250,30.0919,150.74,150.71,6.6328]
[1746128491554,6.632,150.73,150.71,6.6328]
[1746128493954,6.632,150.73,150.7,6.6331]
[1746128494153,6.632,150.73,150.69,7.85832998]
[1746128494554,6.632,150.73,150.7,6.6332]
[1746128495463,6.632,150.73,150.71,6.6329]
[1746128495864,6.6326,150.72,150.69,7.85832998]
[1746128496053,6.6326,150.72,150.68,7.85832998]
[1746128496551,6.6322,150.73,150.7,6.6331]
[1746128496753,31.31832998,150.74,150.68,7.85832998]
[1746128497160,6.6326,150.72,150.7,6.6331]
[1746128500259,6.6323,150.73,150.7,6.6331]
[1746128506374,6.6323,150.73,150.71,6.6328]
[1746128513479,6.6323,150.73,150.7,6.6332]
[1746128516381,31.31832998,150.74,150.7,6.6332]
[1746128516983,6.6324,150.73,150.7,6.6332]
[1746128517985,6.6325,150.72,150.7,6.6332]
[1746128520086,6.6325,150.72,150.69,6.6336]
[1746128520688,6.6333,150.7,150.68,6.6341]
[1746128520986,7.85832998,150.72,150.66,31.23832998]
[1746128521187,6.633,150.71,150.69,6.6337]
[1746128521483,7.85832998,150.72,150.69,6.6337]
[1746128521785,14.49112998,150.72,150.69,6.6337]
[1746128522081,7.85832998,150.72,150.69,6.6337]
[1746128523186,6.633,150.71,150.69,6.6337]
[1746128530183,6.6333,150.7,150.68,6.6341]
[1746128530391,7.85832998,150.72,150.68,6.6341]
[1746128531691,6.6331,150.71,150.68,6.6341]
[1746128534994,6.6333,150.7,150.68,6.6341]
[1746128538198,7.85832998,150.72,150.66,31.23832998]
[1746128538697,6.6336,150.7,150.66,31.23832998]
[1746128538899,7.85832998,150.72,150.66,31.23832998]
[1746128539101,23.46,150.74,150.66,31.23832998]
[1746128539400,31.31832998,150.74,150.69,6.6335]
[1746128540098,6.6329,150.71,150.69,6.6335]
[1746128544601,14.49092998,150.72,150.7,6.6333]
[1746128545107,7.85832998,150.72,150.7,6.6333]
[1746128546194,6.6329,150.71,150.7,6.6333]
[1746128547400,6.6329,150.71,150.69,6.6336]
[1746128550103,6.6329,150.71,150.7,6.6333]
[1746128550406,6.6329,150.71,150.68,7.85832998]
[1746128551201,6.6329,150.71,150.69,6.6334]
[1746128554201,7.85832998,150.72,150.66,23.38]
[1746128554405,7.85832998,150.68,150.58,13.2768]
[1746128554700,7.85832998,150.68,150.64,6.6357]
[1746128554906,7.85832998,150.68,150.62,23.38]
[1746128555206,7.85832998,150.66,150.62,23.38]
[1746128555905,6.6358,150.65,150.63,6.6362]
[1746128556206,7.85832998,150.66,150.62,23.38]
[1746128556411,7.85832998,150.66,150.61,6.6371]
[1746128556604,7.85832998,150.64,150.61,6.6371]
[1746128557607,14.49462998,150.64,150.61,6.6371]
[1746128557809,7.85832998,150.64,150.59,31.23832998]
[1746128558705,14.49452998,150.64,150.61,6.6369]
[1746128559013,14.49452998,150.64,150.59,31.23832998]
[1746128559204,7.85832998,150.64,150.59,31.23832998]
[1746128559707,7.85832998,150.64,150.62,6.6366]
[1746128559903,7.85832998,150.64,150.59,31.23832998]
[1746128561610,7.85832998,150.64,150.61,6.637]
[1746128562207,14.49432998,150.64,150.61,6.637]
[1746128564210,14.49432998,150.64,150.59,37.87602998]
[1746128564410,14.49432998,150.64,150.59,30.0177]
[1746128564606,7.85832998,150.62,150.57,7.85832998]
[1746128565009,7.85832998,150.62,150.56,23.38]
[1746128565210,6.6375,150.61,150.56,23.38]
[1746128565408,31.23832998,150.62,150.56,23.38]
[1746128565611,31.23832998,150.62,150.57,6.639]
[1746128566114,6.638,150.6,150.57,6.639]
[1746128566315,31.23832998,150.62,150.57,6.639]
[1746128566819,6.6383,150.59,150.57,6.639]
[1746128568814,6.6383,150.59,150.56,6.6393]
[1746128569113,7.85832998,150.6,150.56,6.6393]
[1746128569513,6.6386,150.59,150.55,14.49802998]
[1746128570415,7.85832998,150.6,150.55,14.49802998]
[1746128570416,6.6387,150.58,150.56,6.6395]
[1746128571111,23.38,150.62,150.57,7.85832998]
[1746128571712,30.0171,150.62,150.59,6.6378]
[1746128572412,6.6373,150.61,150.59,6.6378]
[1746128572616,6.6373,150.61,150.58,6.6385]
[1746128572915,6.6385,150.59,150.55,7.85832998]
[1746128573116,7.85832998,150.61,150.55,7.85832998]
[1746128573519,6.6393,150.57,150.54,6.6402]
[1746128574517,6.6395,150.56,150.54,6.6402]
[1746128574714,12.30422241,150.6,150.53,23.38]
[1746128574911,29.6665,150.59,150.5,23.38]
[1746128575305,12.30422241,150.57,150.5,23.38]
[1746128575516,6.6418,150.51,150.47,23.38]
[1746128575917,23.38,150.54,150.47,23.38]
[1746128576426,23.38,150.57,150.48,12.30422241]
[1746128576615,23.38,150.57,150.51,12.30422241]
[1746128576926,6.6398,150.56,150.51,12.30422241]
[1746128577427,30.0192,150.57,150.51,12.30422241]
[1746128577617,23.38,150.57,150.51,12.30422241]
[1746128577925,6.6396,150.56,150.53,6.6404]
[1746128578426,6.6396,150.56,150.51,12.30422241]